[Event "CCT Airthings Masters Play-In 2023"]
[Site "Online"]
[Date "2023.02.03"]
[Round "2"]
[White "Msb2"]
[Black "VitaliyBernadskiy"]
[Result "1-0"]
[ECO "D85"]
[WhiteElo "2591"]
[BlackElo "2372"]
[Annotator "TA"]
[PlyCount "61"]
[EventDate "2023.02.03"]
[EventType "swiss"]
[EventCountry "NET"]
[SourceTitle "playchess.com"]
[Source "ChessBase"]
[SourceQuality "1"]
[TimeControl "600+2"]

{[%evp 19,61,0,0,0,31,22,19,16,24,12,19,20,21,20,46,44,62,56,65,56,58,55,69,25,25,27,21,0,12,0,350,350,513,485,477,468,779,771,769,755,733,717,717,630]} 1. d4 {[%emt 0:00:03]} Nf6 {[%emt 0:00:05]} 2. c4 {[%emt 0:00:02]} g6 {[%emt 0:00:01]} 3. Nc3 {[%emt 0:00:01]} d5 {[%emt 0:00:01]} 4. cxd5 {[%emt 0:00:01]} Nxd5 {[%emt 0:00:00]} 5. e4 {[%emt 0:00:00]} Nxc3 {[%emt 0:00:01]} 6. bxc3 {[%emt 0:00:01]} Bg7 {[%emt 0:00:01]} 7. Nf3 {[%emt 0:00:00]} c5 {[%emt 0:00:01]} 8. Bb5+ {[%emt 0:00:01]} Nc6 {[%emt 0:00:06]} 9. O-O {[%emt 0:00:01]} O-O {[%emt 0:00:27] The main line 9...0-0 scores better than 9...cxd4.} 10. Bxc6 {[%emt 0:00:01]} bxc6 {[%emt 0:00:01]} 11. Qc2 {[%emt 0:00:01] D85: Exchange Grünfeld: Unusual White 7th moves and lines with 7 Nf3.} Qc7 {[%emt 0:02:34]} 12. Ba3 {[%emt 0:00:18]} cxd4 {[%emt 0:00:07]} 13. cxd4 {[%emt 0:00:01] The position is equal.} Bg4 {[%emt 0:00:02] [#]} 14. Ne5 {[%emt 0:00:07]} Bxe5 {[%emt 0:00:07]} 15. dxe5 {[%emt 0:00:01]} Qxe5 {[%emt 0:00:16]} 16. h3 {[%emt 0:00:14] [#]} Be6 $146 {[%emt 0:00:14]} ({Predecessor:} 16... Bd7 17. Rad1 Rfd8 18. f4 Qe6 19. Kh1 Be8 20. f5 Qe5 21. Bb2 Qa5 22. f6 exf6 23. Bxf6 Rxd1 24. Rxd1 {½-½ Goryachkina,A (2610)-Abdumalik,Z (2491) Wch Blitz (Women) 2021 (8)}) 17. Bxe7 {[%emt 0:01:05]} ({But not} 17. Qxc6 Rac8 18. Qa4 Bxh3 19. gxh3 Qg5+ 20. Kh2 (20. Kh1 Rc3 $17) 20... Qf4+ 21. Kg2 (21. Kg1 Qg5+ 22. Kh2 Qf4+ 23. Kg1 Qg5+ $11) 21... Qg5+ 22. Kh2 (22. Kh1 Rc3 $17) 22... Qf4+ 23. Kg2 (23. Kg1 Qg5+ 24. Kh2 $11) 23... Rc3 24. Bxe7 (24. Qxa7 $2 Qf3+ 25. Kg1 Qxh3 $19) (24. f3 Rfc8 $17) 24... Qf3+ 25. Kg1 Qxh3 $11) 17... Rfe8 {[%emt 0:02:20]} 18. Ba3 {[%emt 0:00:16]} Rab8 {[%emt 0:00:29] Prevents Bb2} 19. Rad1 {[%emt 0:00:05][%cal Ba1d1,Bd1d3,Bd3g3][%mdl 32]} Qa5 {[%emt 0:00:16]} 20. Rd3 {[%emt 0:01:01]} c5 {[%emt 0:00:23][%cal Bc6c5,Bc5c4][%mdl 32]} 21. Qc1 {[%emt 0:01:02]} (21. Qxc5 $2 {perishes.} Qxc5 22. Bxc5 Bc4 $19) (21. Bxc5 {simplifies} Qxa2 22. Qxa2 Bxa2 23. Ra3) 21... c4 {[%emt 0:00:20]} 22. Rg3 {[%emt 0:00:01]} Qe5 {[%emt 0:00:05] Prevents Bb2.} 23. f4 {[%emt 0:00:29]} Qxe4 {[%emt 0:00:36]} 24. Bb2 {[%emt 0:00:01]} Qe2 $2 {[%emt 0:00:51][%mdl 8192] [#]} (24... Rf8 $11) 25. Ba1 $1 $18 {[%emt 0:00:24] Hoping for Qc3.} Rf8 {[%emt 0:00:39]} (25... Qxa2 $2 26. Qc3 $18) (25... Bf5 $142) 26. f5 {[%emt 0:00:14] White is clearly winning.} Bxf5 {[%emt 0:00:27]} 27. Rxf5 {[%emt 0:00:09]} Rfd8 {[%emt 0:00:06]} (27... Qxa2 $142 28. Rf1 Qa5 29. Qxc4 Qb4) 28. Qc3 {[%emt 0:00:26][%csl Ga1][%cal Rc3h8]} Rd1+ {[%emt 0:00:15]} 29. Kh2 {[%emt 0:00:00][%csl Ga1][%cal Rc3g7]} Rxa1 {[%emt 0:00:02]} 30. Qxa1 {[%emt 0:00:01]} Rb2 {[%emt 0:00:02]} 31. Qf1 {[%emt 0:00:11] Weighted Error Value: White=0.09 (flawless) /Black=0.51} 1-0

[Event "CCT Airthings Masters Play-In 2023"]
[Site "Online"]
[Date "2023.02.03"]
[Round "2"]
[White "jcibarra"]
[Black "kpio91"]
[Result "1/2-1/2"]
[ECO "C10"]
[WhiteElo "2590"]
[BlackElo "2346"]
[Annotator "NA"]
[PlyCount "232"]
[EventDate "2023.02.03"]
[EventType "swiss"]
[EventCountry "NET"]
[SourceTitle "playchess.com"]
[Source "ChessBase"]
[SourceQuality "1"]
[TimeControl "600+2"]

1. e4 {[%emt 0:00:03]} e6 {[%emt 0:00:11]} 2. d4 {[%emt 0:00:01]} d5 {[%emt 0:00:00]} 3. Nc3 {[%emt 0:00:03]} Nf6 {[%emt 0:00:11]} 4. Bg5 {[%emt 0:00:02]} dxe4 {[%emt 0:00:14]} 5. Nxe4 {[%emt 0:00:00]} Nbd7 {[%emt 0:00:01]} 6. Nf3 {[%emt 0:00:21]} h6 {[%emt 0:00:04]} 7. Nxf6+ {[%emt 0:00:03]} Nxf6 {[%emt 0:00:01]} 8. Be3 {[%emt 0:00:01]} Bd6 {[%emt 0:00:31]} 9. Bb5+ {[%emt 0:00:10]} c6 {[%emt 0:00:33]} 10. Bd3 {[%emt 0:00:03]} Qc7 {[%emt 0:00:17]} 11. O-O {[%emt 0:00:20]} b6 {[%emt 0:00:19]} 12. Re1 {[%emt 0:00:25]} Bb7 {[%emt 0:00:07]} 13. a4 {[%emt 0:00:08]} O-O {[%emt 0:00:04]} 14. a5 {[%emt 0:00:24]} c5 {[%emt 0:00:02]} 15. h3 {[%emt 0:00:09]} bxa5 {[%emt 0:00:33]} 16. c3 {[%emt 0:00:22]} Nd5 {[%emt 0:00:22]} 17. dxc5 {[%emt 0:00:32]} Bxc5 {[%emt 0:00:10]} 18. Bxc5 {[%emt 0:00:05]} Qxc5 {[%emt 0:00:00]} 19. Qa4 {[%emt 0:00:05]} Rfd8 {[%emt 0:00:13]} 20. Be4 {[%emt 0:00:10]} Rab8 {[%emt 0:00:52]} 21. Qxa5 {[%emt 0:00:08]} Qxa5 {[%emt 0:00:41]} 22. Rxa5 {[%emt 0:00:00]} Nf6 {[%emt 0:00:01]} 23. Bxb7 {[%emt 0:00:12]} Rxb7 {[%emt 0:00:00]} 24. Re2 {[%emt 0:00:24]} Rd1+ {[%emt 0:00:09]} 25. Kh2 {[%emt 0:00:03]} Rb1 {[%emt 0:00:22]} 26. Ra2 {[%emt 0:00:04]} Nd5 {[%emt 0:00:03]} 27. g3 {[%emt 0:00:02]} f6 {[%emt 0:00:31]} 28. Nd4 {[%emt 0:00:29]} e5 {[%emt 0:00:04]} 29. Nc6 {[%emt 0:00:03]} Nb6 {[%emt 0:00:35]} 30. Re4 {[%emt 0:00:55]} Rd7 {[%emt 0:00:12]} 31. b4 {[%emt 0:00:40]} Nd5 {[%emt 0:00:17]} 32. Rc4 {[%emt 0:00:17]} Nb6 {[%emt 0:01:11]} 33. Rc5 {[%emt 0:00:10]} Rdd1 {[%emt 0:00:07]} 34. Re2 {[%emt 0:01:28]} Na4 {[%emt 0:00:36]} 35. Ne7+ {[%emt 0:00:02]} Kf7 {[%emt 0:00:01]} 36. Rc7 {[%emt 0:00:03]} Ke6 {[%emt 0:00:03]} 37. Nc6 {[%emt 0:00:10]} Nxc3 {[%emt 0:00:16]} 38. Nd8+ {[%emt 0:01:46]} Rxd8 {[%emt 0:00:04]} 39. Rxc3 {[%emt 0:00:00]} Rxb4 {[%emt 0:00:02]} 40. Ra2 {[%emt 0:00:01]} Rb7 {[%emt 0:00:12]} 41. Rca3 {[%emt 0:00:03]} Rdd7 {[%emt 0:00:01]} 42. Ra6+ {[%emt 0:00:00]} Kf5 {[%emt 0:00:03]} 43. Kg2 {[%emt 0:00:07]} h5 {[%emt 0:00:01]} 44. R2a3 {[%emt 0:00:02]} Rdc7 {[%emt 0:00:04]} 45. Kf3 {[%emt 0:00:01]} Kg5 {[%emt 0:00:22]} 46. R6a5 {[%emt 0:00:11]} Rd7 {[%emt 0:00:07]} 47. Kg2 {[%emt 0:00:04]} Kh6 {[%emt 0:00:02]} 48. Ra6 {[%emt 0:00:07]} Rbc7 {[%emt 0:00:03]} 49. Ra2 {[%emt 0:00:02]} Kg5 {[%emt 0:00:08]} 50. R2a5 {[%emt 0:00:01]} h4 {[%emt 0:00:22]} 51. gxh4+ {[%emt 0:00:25]} Kxh4 {[%emt 0:00:02]} 52. Ra4+ {[%emt 0:00:00]} Kg5 {[%emt 0:00:02]} 53. R6a5 {[%emt 0:00:05]} Kf5 {[%emt 0:00:03]} 54. Kg3 {[%emt 0:00:02]} Rc3+ {[%emt 0:00:02]} 55. Kg2 {[%emt 0:00:01]} Rcc7 {[%emt 0:00:08]} 56. Kg3 {[%emt 0:00:02]} g5 {[%emt 0:00:02]} 57. Kg2 {[%emt 0:00:05]} Rc2 {[%emt 0:00:04]} 58. Ra3 {[%emt 0:00:02]} Rcc7 {[%emt 0:00:03]} 59. Ra6 {[%emt 0:00:02]} Kg6 {[%emt 0:00:03]} 60. Re3 {[%emt 0:00:02]} Re7 {[%emt 0:00:01]} 61. Rf3 {[%emt 0:00:01]} Rf7 {[%emt 0:00:01]} 62. Re3 {[%emt 0:00:01]} Kg7 {[%emt 0:00:01]} 63. Rea3 {[%emt 0:00:01]} Rcd7 {[%emt 0:00:01]} 64. Kg3 {[%emt 0:00:01]} Kg6 {[%emt 0:00:04]} 65. Re3 {[%emt 0:00:03]} Rde7 {[%emt 0:00:02]} 66. Rea3 {[%emt 0:00:02]} Kh5 {[%emt 0:00:03]} 67. Rc3 {[%emt 0:00:04]} e4 {[%emt 0:00:04]} 68. Rcc6 {[%emt 0:00:02]} Kg6 {[%emt 0:00:01]} 69. Rc3 {[%emt 0:00:04]} Rc7 {[%emt 0:00:03]} 70. Rca3 {[%emt 0:00:01]} Rcd7 {[%emt 0:00:03]} 71. Kg2 {[%emt 0:00:01]} Rfe7 {[%emt 0:00:02]} 72. R6a4 {[%emt 0:00:03]} f5 {[%emt 0:00:02]} 73. Ra6+ {[%emt 0:00:01]} Kg7 {[%emt 0:00:02]} 74. R3a5 {[%emt 0:00:01]} Rf7 {[%emt 0:00:01]} 75. Re5 {[%emt 0:00:04]} Rde7 {[%emt 0:00:02]} 76. Rea5 {[%emt 0:00:02]} Kh7 {[%emt 0:00:03]} 77. Kf1 {[%emt 0:00:02]} Kg7 {[%emt 0:00:01]} 78. Kg2 {[%emt 0:00:01]} Rc7 {[%emt 0:00:01]} 79. Ra2 {[%emt 0:00:06]} Rc3 {[%emt 0:00:05]} 80. Rxa7 {[%emt 0:00:03]} Rxa7 {[%emt 0:00:01]} 81. Rxa7+ {[%emt 0:00:00]} Kg6 {[%emt 0:00:01]} 82. Ra6+ {[%emt 0:00:02]} Kh5 {[%emt 0:00:03]} 83. Re6 {[%emt 0:00:00]} Rc5 {[%emt 0:00:02]} 84. Kg3 {[%emt 0:00:04]} Rb5 {[%emt 0:00:02]} 85. Kg2 {[%emt 0:00:01]} Ra5 {[%emt 0:00:01]} 86. Kh2 {[%emt 0:00:00]} Rd5 {[%emt 0:00:02]} 87. Kg2 {[%emt 0:00:01]} g4 {[%emt 0:00:03]} 88. hxg4+ {[%emt 0:00:02]} Kxg4 {[%emt 0:00:01]} 89. f3+ {[%emt 0:00:11]} exf3+ {[%emt 0:00:01]} 90. Kf2 {[%emt 0:00:00]} Rd2+ {[%emt 0:00:02]} 91. Kf1 {[%emt 0:00:01]} Kg3 {[%emt 0:00:02]} 92. Rg6+ {[%emt 0:00:01]} Kf4 {[%emt 0:00:00]} 93. Rg8 {[%emt 0:00:01]} Ra2 {[%emt 0:00:06]} 94. Rb8 {[%emt 0:00:01]} Ra4 {[%emt 0:00:02]} 95. Kf2 {[%emt 0:00:01]} Rc4 {[%emt 0:00:02]} 96. Ra8 {[%emt 0:00:02]} Rd4 {[%emt 0:00:02]} 97. Rb8 {[%emt 0:00:01]} Rd2+ {[%emt 0:00:03]} 98. Kf1 {[%emt 0:00:02]} Re2 {[%emt 0:00:01]} 99. Ra8 {[%emt 0:00:02]} Kg4 {[%emt 0:00:03]} 100. Rg8+ {[%emt 0:00:01]} Kf4 {[%emt 0:00:01]} 101. Ra8 {[%emt 0:00:00]} Rb2 {[%emt 0:00:02]} 102. Rc8 {[%emt 0:00:06]} Rb1+ {[%emt 0:00:03]} 103. Kf2 {[%emt 0:00:01]} Rb2+ {[%emt 0:00:00]} 104. Kf1 {[%emt 0:00:01]} Rd2 {[%emt 0:00:04]} 105. Ra8 {[%emt 0:00:02]} Rd4 {[%emt 0:00:02]} 106. Kf2 {[%emt 0:00:01]} Rc4 {[%emt 0:00:02]} 107. Rb8 {[%emt 0:00:02]} Ra4 {[%emt 0:00:01]} 108. Rh8 {[%emt 0:00:02]} Ra2+ {[%emt 0:00:01]} 109. Kf1 {[%emt 0:00:01]} f2 {[%emt 0:00:02]} 110. Rh3 {[%emt 0:00:01]} Kg4 {[%emt 0:00:03]} 111. Rb3 {[%emt 0:00:01]} f4 {[%emt 0:00:00]} 112. Rc3 {[%emt 0:00:01]} f3 {[%emt 0:00:04]} 113. Rxf3 {[%emt 0:00:06]} Ra1+ {[%emt 0:00:01]} 114. Kg2 {[%emt 0:00:01]} Rg1+ {[%emt 0:00:03]} 115. Kxf2 {[%emt 0:00:01]} Rf1+ {[%emt 0:00:02]} 116. Kxf1 {[%emt 0:00:00]} Kxf3 {[%emt 0:00:00]} 1/2-1/2

[Event "CCT Airthings Masters Play-In 2023"]
[Site "Online"]
[Date "2023.02.03"]
[Round "2"]
[White "shimastream"]
[Black "Eltaj_Safarli"]
[Result "1/2-1/2"]
[ECO "B21"]
[WhiteElo "2587"]
[BlackElo "2339"]
[Annotator "TA"]
[PlyCount "161"]
[EventDate "2023.02.03"]
[EventType "swiss"]
[EventCountry "NET"]
[SourceTitle "playchess.com"]
[Source "ChessBase"]
[SourceQuality "1"]
[TimeControl "600+2"]

{[%evp 9,161,0,14,0,4,10,18,15,19,8,16,12,10,4,13,1,7,0,-5,8,0,-51,-44,-48,-50,-91,-79,-150,-156,-189,-188,-160,-137,-144,-129,-114,-108,-189,-142,-213,-126,-141,-151,-140,-137,-133,-122,-134,-130,-119,-72,-73,-74,-74,-74,-79,-74,-77,-77,-153,-150,-147,-83,-156,-65,-81,-81,-81,-69,-69,-69,-69,-69,-69,-69,-69,-69,-69,-43,-43,-43,-81,-81,-81,-74,-74,-74,-81,-74,-74,-74,-81,-81,-81,-81,-106,-106,-185,-198,-208,-208,-208,-208,-208,0,-202,-132,-200,-142,-12793,-12806,-5206,-1341,-12762,-379,-9785,-72,-72,-72,-72,-72,-72,-72,-72,0,-72,0,-72,0,-72,-72,-72,-72,-1461,-72,-930,-72,-72,-72,-72,-72,-72,-72,-72,-72,-72,-72,-72,-72,-72,0,-72,0,-72]} 1. e4 {[%emt 0:00:03]} c5 {[%emt 0:00:09]} 2. d4 {[%emt 0:00:10]} cxd4 {[%emt 0:00:03]} 3. Qxd4 {[%emt 0:00:00]} Nc6 {[%emt 0:00:03]} 4. Qd3 {[%emt 0:00:01]} g6 {[%emt 0:00:47]} 5. Nc3 {[%emt 0:00:02]} Bg7 {[%emt 0:00:01]} 6. Nf3 {[%emt 0:00:01] B21: Sicilian: 2 f4 and Morra Gambit.} Nf6 {[%emt 0:00:06][%cal Bg8f6,Bf6d7,Bd7c5][%mdl 32]} 7. Be2 {[%emt 0:00:03]} O-O {[%emt 0:00:01]} 8. O-O {[%emt 0:00:16]} d6 {[%emt 0:00:11]} 9. Nd5 {[%emt 0:00:03]} Bg4 {[%emt 0:00:13][%cal Bc8g4,Bg4h5,Bh5g6][%mdl 32]} 10. c3 {[%emt 0:00:03]} Nd7 {[%emt 0:00:05]} 11. Bg5 {[%emt 0:00:03]} h6 {[%emt 0:01:04]} 12. Bh4 {[%emt 0:00:02]} Nc5 {[%emt 0:01:13]} 13. Qc2 {[%emt 0:00:03]} g5 {[%emt 0:00:16]} 14. Bg3 {[%emt 0:00:01]} Bh5 {[%emt 0:00:02] [#]} 15. Rae1 $146 {[%emt 0:02:22]} (15. b4 $11 Nd7 16. b5) ({Predecessor:} 15. b4 Nd7 16. b5 Na5 17. Rfd1 Bxf3 18. Bxf3 Rc8 19. Be2 e6 20. Ne3 Bxc3 21. Rab1 {0-1 Hjorth,J (1936)-Sapundjiev,G (2302) W-Cup22 WS03 email 2017}) 15... Bg6 $36 {[%emt 0:00:09][%mdl 2048] Black has some pressure.} 16. Nd2 $1 {[%emt 0:00:06]} e6 {[%emt 0:00:02]} 17. Ne3 {[%emt 0:00:02]} d5 {[%emt 0:00:02]} 18. Bf3 {[%emt 0:01:07]} (18. f3 $142) 18... Rc8 $17 {[%emt 0:00:21]} 19. Rd1 {[%emt 0:00:34]} b5 {[%emt 0:01:31]} 20. Qb1 {[%emt 0:00:40]} Qb6 {[%emt 0:00:07]} 21. Bd6 {[%emt 0:00:12]} Rfd8 {[%emt 0:00:01]} 22. Bxc5 {[%emt 0:00:00]} Qxc5 {[%emt 0:00:00]} 23. a3 {[%emt 0:01:11]} (23. Qa1 $17) 23... a5 {[%emt 0:00:58]} (23... Qb6 $19 24. h3 Ne5) 24. Rfe1 {[%emt 0:00:58]} (24. Qa1 $17) 24... d4 {[%emt 0:00:24]} ({Black should try} 24... Ne5 $19 25. Qa2 dxe4 26. Nxe4 Qb6) 25. Nb3 {[%emt 0:00:03]} Qb6 {[%emt 0:00:01]} 26. Nxd4 {[%emt 0:00:02]} Nxd4 {[%emt 0:00:01]} 27. cxd4 {[%emt 0:00:00]} Rxd4 {[%emt 0:00:05]} ({And not} 27... Bxd4 28. Rd3 $17) 28. b3 {[%emt 0:00:43]} Rxd1 {[%emt 0:00:12]} 29. Rxd1 {[%emt 0:00:00] White is weak on the dark squares} Rd8 {[%emt 0:00:16]} (29... Rc3 $142 30. Rd3 Qc5 31. Rxc3 Qxc3) 30. Rxd8+ {[%emt 0:00:06]} Qxd8 {[%emt 0:00:00]} 31. a4 {[%emt 0:00:01]} bxa4 {[%emt 0:00:08]} 32. bxa4 {[%emt 0:00:00]} Qd4 {[%emt 0:00:01]} 33. Qc2 {[%emt 0:00:05]} Qa1+ {[%emt 0:00:07]} 34. Qd1 {[%emt 0:00:17]} (34. Nd1 $142) 34... Qxd1+ {[%emt 0:00:28]} 35. Nxd1 {[%emt 0:00:00][%mdl 4096] Endgame KBB-KBN} Bd4 {[%emt 0:00:02]} (35... h5 $142 $1 36. h3 Bd4) 36. Kf1 {[%emt 0:00:14]} (36. Ne3 $142) 36... f6 {[%emt 0:00:27]} ({Black should play} 36... h5 $17 37. h3 g4 {[%mdl 64] Deflection} 38. hxg4 hxg4 39. Bxg4 Bxe4) 37. Ne3 {[%emt 0:00:03]} Bxe3 {[%emt 0:00:09]} 38. fxe3 {[%emt 0:00:00] KB-KB} Be8 {[%emt 0:00:13]} 39. Bd1 {[%emt 0:00:01]} Kf8 {[%emt 0:00:01]} 40. Ke2 {[%emt 0:00:15]} Ke7 {[%emt 0:00:18] White must now prevent ...Kd6.} 41. Kd3 {[%emt 0:00:15]} Kd6 {[%emt 0:00:01]} 42. Kd4 {[%emt 0:00:02]} Bc6 {[%emt 0:00:06] aiming for ...e5+.} 43. Bc2 $1 {[%emt 0:00:03]} Bb7 {[%emt 0:00:13]} 44. g3 {[%emt 0:00:06]} Ba6 {[%emt 0:00:05]} 45. e5+ {[%emt 0:00:14]} fxe5+ {[%emt 0:00:00]} 46. Kc3 {[%emt 0:00:01]} Kc5 {[%emt 0:00:01]} 47. Bb3 {[%emt 0:00:04]} Bc8 $1 {[%emt 0:00:01]} 48. Bc2 {[%emt 0:00:03]} Bd7 {[%emt 0:00:02]} 49. Bb3 {[%emt 0:00:03]} Bc6 {[%emt 0:00:02]} 50. Bc2 {[%emt 0:00:03]} Bf3 {[%emt 0:00:13]} 51. Bb3 {[%emt 0:00:04]} Bg4 {[%emt 0:00:01]} 52. Bc2 {[%emt 0:00:03]} Kd5 {[%emt 0:00:00]} 53. e4+ {[%emt 0:00:34]} (53. Bd3 $17 {is a better defense.}) 53... Kc5 {[%emt 0:00:01]} 54. Bb3 {[%emt 0:00:03]} Bf3 {[%emt 0:00:01]} 55. Bc2 {[%emt 0:00:00]} Be2 {[%emt 0:00:09]} 56. Bb3 {[%emt 0:00:02]} Bf3 {[%emt 0:00:12]} 57. Bc2 {[%emt 0:00:01]} Bh5 {[%emt 0:00:01]} 58. Bb3 {[%emt 0:00:01]} (58. Bd3 $17 {was worth a try.}) 58... Be8 {[%emt 0:00:00]} 59. h4 $2 {[%emt 0:00:05][%mdl 8192]} (59. Bc2 $17) 59... gxh4 $1 $19 {[%emt 0:00:05]} 60. gxh4 {[%emt 0:00:00]} Bg6 {[%emt 0:00:06]} (60... Bh5 $142 61. Bc2 Bf3) 61. Bc2 {[%emt 0:00:01]} Bh5 $1 {[%emt 0:00:00] ...Bg6 would be deadly.} 62. Bb3 {[%emt 0:00:03]} Be8 $2 {[%emt 0:00:02]} (62... Bf3 $19 {has better winning chances.} 63. Bc2 Bh5) 63. Bd1 $17 {[%emt 0:00:03]} Bc6 {[%emt 0:00:04]} 64. Bc2 {[%emt 0:00:01]} Bb7 {[%emt 0:00:06]} 65. Bd3 {[%emt 0:00:03]} Ba8 {[%emt 0:00:05]} 66. Bb1 {[%emt 0:00:03]} Bb7 {[%emt 0:00:04]} 67. Bd3 {[%emt 0:00:01]} Bc6 {[%emt 0:00:01]} 68. Bc2 {[%emt 0:00:01]} Be8 {[%emt 0:00:01]} (68... Kb6 $17 {Strongly threatening ...Kc5.} 69. Kd2 Ba8) 69. Bd1 {[%emt 0:00:03]} (69. Bb3 $11) 69... Bf7 {[%emt 0:00:04]} 70. Be2 {[%emt 0:00:06]} Bg6 {[%emt 0:00:03]} 71. Bd3 $2 {[%emt 0:00:01][%mdl 8192] [#]} (71. Bf3 $17) 71... Bh5 $2 {[%emt 0:00:01]} (71... Be8 $1 $19 {[%cal Re8a4] and Black stays clearly on top.} 72. Bc2 Bc6) 72. Bc4 $2 {[%emt 0:00:05][%mdl 8192] [#]} (72. Bc2 $17) 72... Bd1 $1 $19 {[%emt 0:00:04]} 73. Bb5 {[%emt 0:00:03]} Bf3 {[%emt 0:00:03]} 74. Bd3 {[%emt 0:00:01]} Bg2 {[%emt 0:00:00]} 75. Bc2 {[%emt 0:00:02]} Bh1 {[%emt 0:00:03]} 76. Bd3 {[%emt 0:00:01]} Bf3 {[%emt 0:00:02] ...Bd1 is the strong threat.} 77. Bc2 {[%emt 0:00:01] Repels Bd1} Be2 {[%emt 0:00:02]} 78. Bb3 {[%emt 0:00:01]} Bg4 {[%emt 0:00:02]} 79. Bc2 {[%emt 0:00:03]} Bh5 {[%emt 0:00:05] And now ...Bf3 would win.} 80. Bb3 {[%emt 0:00:04]} Be8 {[%emt 0:00:02]} 81. Bd1 $1 {[%emt 0:00:02] Weighted Error Value: White=0.28 (precise) /Black=0.25 (precise)} 1/2-1/2

[Event "CCT Airthings Masters Play-In 2023"]
[Site "Online"]
[Date "2023.02.03"]
[Round "2"]
[White "Cayse"]
[Black "CheckBits"]
[Result "1-0"]
[ECO "C46"]
[WhiteElo "2583"]
[BlackElo "2300"]
[Annotator "TA"]
[PlyCount "87"]
[EventDate "2023.02.03"]
[EventType "swiss"]
[EventCountry "NET"]
[SourceTitle "playchess.com"]
[Source "ChessBase"]
[SourceQuality "1"]
[TimeControl "600+2"]

{[%evp 9,87,63,61,14,27,20,28,24,27,24,41,24,33,34,41,38,72,82,103,20,32,25,23,13,38,43,41,42,42,39,135,26,35,11,85,61,66,61,64,36,64,62,77,62,45,52,69,60,68,52,59,75,114,106,283,269,415,402,468,451,739,728,791,750,991,997,991,894,29987,29988,29988,29989,29989,29990,29990,29991,29991,29992,29995,29996]} 1. e4 {[%emt 0:00:04]} e5 {[%emt 0:00:08]} 2. Nf3 {[%emt 0:00:02]} Nc6 {[%emt 0:00:02]} 3. Nc3 {[%emt 0:00:03]} Bb4 {[%emt 0:00:11]} 4. Nd5 {[%emt 0:00:28]} Ba5 {[%emt 0:00:04]} 5. Bc4 {[%emt 0:00:30]} Nf6 {[%emt 0:00:03]} 6. Qe2 {[%emt 0:00:41] C46: 3 Nc3: Unusual Black 3rd moves.} (6. c3 $14 {deserves consideration.}) 6... d6 {[%emt 0:00:16]} 7. O-O {[%emt 0:00:08]} Bg4 {[%emt 0:00:06] White must now prevent ...Nd4.} 8. c3 {[%emt 0:00:03] Inhibits Nd4. White has an edge.} Nxd5 {[%emt 0:00:50]} 9. Bxd5 {[%emt 0:00:19]} O-O {[%emt 0:00:05]} 10. h3 {[%emt 0:00:06]} Bh5 {[%emt 0:00:03] [#]} 11. a4 $146 {[%emt 0:00:28] Bxc6 is the strong threat.} ({Predecessor:} 11. g4 Bg6 12. Qb5 Bb6 13. Bxc6 bxc6 14. Qxc6 h5 15. d3 Qc8 16. Nh2 hxg4 17. hxg4 {1-0 Zuse,P (2270)-Vogel,T Bundesliga 9091 1990 [8]}) 11... a6 {[%emt 0:00:10]} 12. d3 {[%emt 0:00:07]} Rb8 {[%emt 0:00:18]} 13. g4 {[%emt 0:00:30]} Bg6 {[%emt 0:00:02] [#]} 14. Bg5 {[%emt 0:00:06]} (14. h4 $1 $16 {[%cal Rh4h5]}) 14... Qd7 $11 {[%emt 0:00:08]} 15. Nh4 {[%emt 0:00:25]} Ne7 {[%emt 0:00:22]} 16. Ba2 {[%emt 0:00:11]} Bb6 {[%emt 0:00:14]} 17. Nf5 {[%emt 0:00:10]} Nc6 {[%emt 0:01:27]} 18. Qf3 {[%emt 0:00:03][%cal Of5g7] Nxg7! would be deadly.} h6 {[%emt 0:01:53]} 19. Bd2 {[%emt 0:00:03][%cal Of5h6]} Kh8 {[%emt 0:00:42] [#]} (19... Kh7 $14) 20. Kh2 {[%emt 0:00:30]} (20. Nxh6 $1 $16 {With the idea Nf5.} f6 21. Nf5) 20... f6 {[%emt 0:00:04]} 21. Qg3 {[%emt 0:00:44][%cal Of5h6]} Nd8 {[%emt 0:00:08]} (21... Ne7 $11) 22. f4 {[%emt 0:00:28]} (22. Nxh6 {seems wilder.} gxh6 23. Bxh6 Nf7 24. Bxf8 Rxf8 25. a5) 22... exf4 {[%emt 0:00:11]} 23. Bxf4 {[%emt 0:00:11][%cal Of5h6]} Ne6 {[%emt 0:00:06]} 24. Bd2 {[%emt 0:00:04][%cal Of5h6]} Rbe8 {[%emt 0:00:02] [#]} 25. a5 $1 {[%emt 0:00:05]} Ba7 {[%emt 0:00:01]} 26. Rae1 {[%emt 0:00:10]} Bb8 {[%emt 0:00:02][%cal Od6d5]} 27. Kh1 {[%emt 0:00:15]} c6 {[%emt 0:00:02]} 28. Qg2 {[%emt 0:00:36] White has more active pieces.} Ng5 {[%emt 0:00:22][%cal Od6d5]} 29. h4 {[%emt 0:00:10]} Nf7 {[%emt 0:00:05][%cal Od6d5]} 30. d4 {[%emt 0:00:16]} Bc7 {[%emt 0:00:22]} 31. b4 {[%emt 0:00:04]} c5 $2 {[%emt 0:00:08] A mistake that costs the game.} 32. Bd5 $18 {[%emt 0:00:10]} ({Less strong is} 32. dxc5 dxc5 33. bxc5 Ne5 $16) 32... b6 {[%emt 0:00:09]} (32... cxb4 {was necessary.} 33. cxb4 (33. Bxb7 bxc3 34. Bxc3 Bxa5 $15) 33... Bd8) 33. g5 {[%emt 0:00:19]} fxg5 {[%emt 0:00:14]} 34. hxg5 {[%emt 0:00:01]} Bxf5 {[%emt 0:00:42]} (34... Nxg5 $142 35. Bxg5 Bxf5) 35. Rxf5 {[%emt 0:00:21][%cal Bf1f5,Bf5g5,Bg5g6][%mdl 32] Hoping for Ref1.} Nxg5 {[%emt 0:00:28] Black is weak on the light squares} 36. Rxg5 {[%emt 0:00:10] And now Rg6 would win.} Bd8 {[%emt 0:00:17]} 37. Rg6 {[%emt 0:00:16][%cal Od2h6] Threatens to win with Bxh6!} Qe7 {[%emt 0:00:09]} 38. Qh2 {[%emt 0:00:27][%cal Od2h6] White threatens Bxh6! and mate.} Rf3 {[%emt 0:00:08] [#]} 39. Bxh6 $1 {[%emt 0:00:09][%csl Gg6][%cal Rh6g7] White mates.} Qh4 {[%emt 0:00:07]} 40. Bxg7+ {[%emt 0:00:06]} Kh7 {[%emt 0:00:06]} 41. Rh6+ {[%emt 0:00:03]} Kxg7 {[%emt 0:00:03]} 42. Rxh4 {[%emt 0:00:01]} Bxh4 {[%emt 0:00:04]} 43. Qxh4 {[%emt 0:00:02]} Rh8 {[%emt 0:00:02]} 44. Rg1+ {[%emt 0:00:02] Excellently played by Cayse!   Weighted Error Value: White=0.11 (very precise) /Black=0.43} 1-0